[Event "45th FIDE Womens Olympiad 2024"]
[Site "Budapest"]
[Date "2024.09.12"]
[Round "2.27"]
[White "Nguyen, Thu Giang"]
[Black "Balajayeva, Khanim"]
[Result "0-1"]
[ECO "C47"]
[WhiteElo "2068"]
[BlackElo "2384"]
[Annotator "TA"]
[PlyCount "128"]
[EventDate "2024.09.05"]
[EventType "team-tourn"]
[EventCountry "HUN"]
[SourceTitle "playchess.com"]
[Source "ChessBase"]
[SourceQuality "1"]
[WhiteTeam "Australia"]
[BlackTeam "Azerbaijan"]
[WhiteTeamCountry "AUS"]
[BlackTeamCountry "AZE"]
[TimeControl "40/5400+30:1800+30"]

{[%evp 17,128,0,0,0,2,0,0,0,35,29,35,0,0,0,0,0,0,0,25,15,26,0,0,0,19,0,36,30,18,12,34,0,0,7,60,26,22,27,33,5,18,0,0,0,8,-21,-17,-34,-27,-48,-53,-42,-46,-47,-50,-36,0,0,2,-82,-69,-160,-139,-231,-244,-233,-241,-242,-237,-232,-186,-248,-220,-183,-183,-276,-284,-312,-306,-314,-294,-418,-403,-519,-515,-516,-537,-613,-614,-703,-691,-708,-724,-710,-693,-694,-661,-841,-836,-6033,-6017,-5546,-5514,-4254,-932,-6661,-6017,-29967,-29968,-29964,-6432,-4132,639]} 1. e4 {[%emt 0:00:08]} e5 {[%emt 0:00:06]} 2. Nf3 {[%emt 0:00:22]} Nc6 {[%emt 0:00:09]} 3. Nc3 {[%emt 0:00:29]} Nf6 {[%emt 0:00:10]} 4. d4 {[%emt 0:00:36]} exd4 {[%emt 0:00:22]} 5. Nxd4 {[%emt 0:00:12]} Bb4 {[%emt 0:00:12]} 6. Nxc6 {[%emt 0:00:28]} bxc6 {[%emt 0:00:12]} 7. Bd3 {[%emt 0:00:31]} d5 {[%emt 0:00:16]} 8. exd5 {[%emt 0:00:37]} O-O {[%emt 0:00:59]} 9. O-O {[%emt 0:00:43]} cxd5 {[%emt 0:00:04]} 10. h3 {[%emt 0:01:17]} c6 {[%emt 0:01:22]} 11. Qf3 {[%emt 0:01:23]} Bd6 {[%emt 0:01:35]} 12. Re1 {[%emt 0:02:18] The position is equal.} Rb8 {[%emt 0:06:07]} 13. b3 {[%emt 0:06:03]} Be6 {[%emt 0:13:56]} 14. Bf4 {[%emt 0:08:29]} Bxf4 {[%emt 0:09:33]} 15. Qxf4 {[%emt 0:02:59]} c5 {[%emt 0:00:11]} 16. Rad1 {[%emt 0:17:22]} Qa5 {[%emt 0:03:27]} 17. Re3 {[%emt 0:12:25][%cal Oe3g3]} Rb4 {[%emt 0:11:37]} 18. Qe5 {[%emt 0:09:17]} Nd7 {[%emt 0:07:16]} 19. Qh5 {[%emt 0:03:50][%csl Gd3][%cal Rh5h7] [#]} Nf6 {[%emt 0:06:15]} 20. Qe5 {[%emt 0:00:35]} Nd7 {[%emt 0:00:54]} 21. Qh5 {[%emt 0:00:45][%csl Gd3][%cal Rh5h7]} g6 {[%emt 0:01:36]} 22. Qh6 {[%emt 0:01:33]} Qd8 {[%emt 0:00:40]} 23. Rg3 {[%emt 0:06:37]} Qf6 {[%emt 0:05:45][%cal Of8d8]} 24. Ne2 {[%emt 0:11:22]} Rh4 {[%emt 0:09:20]} 25. Qe3 {[%emt 0:01:38]} Qe5 {[%emt 0:02:53]} (25... d4 $11 26. Qc1 Re8) 26. Qxe5 {[%emt 0:03:36]} Nxe5 {[%emt 0:00:03]} 27. f4 {[%emt 0:00:23]} Nxd3 {[%emt 0:00:55]} 28. Rdxd3 {[%emt 0:02:01]} Rh5 {[%emt 0:06:47]} 29. Rge3 {[%emt 0:00:41]} d4 {[%emt 0:00:16]} 30. g4 {[%emt 0:01:15] [#] aiming for Rxe6.} Rd5 {[%emt 0:04:00]} 31. Rg3 {[%emt 0:00:26]} Bc8 {[%emt 0:02:08]} 32. Nc3 {[%emt 0:01:14]} Rd6 {[%emt 0:00:41]} 33. Ne4 {[%emt 0:00:40]} Rc6 {[%emt 0:00:02]} 34. Nf2 {[%emt 0:03:41]} Re8 {[%emt 0:00:26] Threatens to win with ...Rce6.} 35. Rd2 $1 {[%emt 0:00:18]} Re1+ {[%emt 0:00:38]} 36. Kh2 $1 {[%emt 0:00:03]} Rce6 {[%emt 0:00:19] ...R1e2 would now be deadly.} 37. Nd3 $1 {[%emt 0:00:16][%csl LRc5,LRe1]} Ra1 {[%emt 0:01:32]} 38. Rg1 {[%emt 0:00:20]} (38. Nxc5 $11 Rc6 39. Nd3) 38... Rxa2 $17 {[%emt 0:00:33] Black is more active. White is now going downhill.} 39. Nxc5 {[%emt 0:01:55]} (39. Rgg2 $15) 39... Rc6 $36 {[%emt 0:00:02][%mdl 2048] Black is on the roll.} 40. Ne4 {[%emt 0:01:06]} (40. b4 $17) 40... Rcxc2 $19 {[%emt 0:01:35]} ({But not} 40... Raxc2 41. Rgg2 Rxd2 42. Rxd2 $17) 41. Rxc2 {[%emt 0:09:07]} Rxc2+ {[%emt 0:00:03][%mdl 4096] Endgame. KRB-KRN} 42. Kg3 {[%emt 0:00:11]} Bb7 {[%emt 0:06:26]} 43. Nd6 {[%emt 0:15:39]} Bc6 {[%emt 0:03:11]} 44. Ra1 {[%emt 0:02:47]} (44. b4 $142) 44... Rc3+ {[%emt 0:02:50]} 45. Kf2 {[%emt 0:00:27]} Rxb3 {[%emt 0:01:40]} 46. Rxa7 {[%emt 0:00:08]} (46. f5 $142) 46... Rf3+ {[%emt 0:00:23]} ({Weaker is} 46... Rxh3 47. Ke2 $17) 47. Ke2 {[%emt 0:00:17]} Rxf4 {[%emt 0:00:09]} 48. Rc7 {[%emt 0:01:03]} Bg2 {[%emt 0:01:11]} 49. g5 {[%emt 0:04:34]} (49. Rc8+ $142 Kg7 50. g5) 49... Bxh3 {[%emt 0:00:41]} 50. Kd3 {[%emt 0:00:33]} Kf8 {[%emt 0:00:46]} 51. Ra7 {[%emt 0:00:29]} Be6 {[%emt 0:01:47]} 52. Rc7 {[%emt 0:00:36]} Rg4 {[%emt 0:00:49]} 53. Rc5 {[%emt 0:00:30]} Ke7 {[%emt 0:00:16]} 54. Nb5 {[%emt 0:00:17]} Bf5+ {[%emt 0:00:11]} 55. Kd2 {[%emt 0:00:54]} d3 {[%emt 0:00:09]} 56. Rc7+ {[%emt 0:00:14]} Ke6 {[%emt 0:00:32][%cal Oe6e5]} 57. Rc6+ {[%emt 0:00:43]} Kd5 {[%emt 0:02:00]} 58. Rf6 {[%emt 0:00:27]} Rg2+ {[%emt 0:01:04]} 59. Ke3 {[%emt 0:00:29]} Re2+ {[%emt 0:01:48]} 60. Kf3 {[%emt 0:00:07]} Re7 {[%emt 0:01:51] And now ...Kc5 would win.} 61. Nc3+ {[%emt 0:00:47]} Kd4 {[%emt 0:00:35]} 62. Nd1 {[%emt 0:00:40]} Re1 {[%emt 0:00:23]} 63. Nf2 {[%emt 0:00:25]} Be6 {[%emt 0:00:54] ( -> ...Bd5+)} 64. Rf4+ {[%emt 0:00:30]} Ke5 $4 {[%emt 0:00:43][%mdl 40960] Weighted Error Value: White=0.25 (precise) /Black=0.08 (flawless) .  Mistake:       	White=6     	Black=1      Inaccurate:     	White=5     	Black=3      OK:         	White=10    	Black=20     Best:        	White=3     	Black=5      Strong:       	White=2     	---       . Sensor Board Error (Ke4/e5)?} (64... Kc3 $19 65. Nxd3 Kxd3) 0-1

[Event "45th FIDE Womens Olympiad 2024"]
[Site "Budapest"]
[Date "2024.09.12"]
[Round "2.28"]
[White "Mammadova, Gulnar"]
[Black "Shen, Zhiyuan"]
[Result "1/2-1/2"]
[ECO "B31"]
[WhiteElo "2336"]
[BlackElo "1969"]
[Annotator "TA"]
[PlyCount "90"]
[EventDate "2024.09.05"]
[EventType "team-tourn"]
[EventCountry "HUN"]
[SourceTitle "playchess.com"]
[Source "ChessBase"]
[SourceQuality "1"]
[WhiteTeam "Azerbaijan"]
[BlackTeam "Australia"]
[WhiteTeamCountry "AZE"]
[BlackTeamCountry "AUS"]
[TimeControl "40/5400+30:1800+30"]

{[%evp 11,90,12,9,15,23,27,17,11,6,1,10,12,0,7,9,8,11,5,16,12,14,9,4,2,10,4,15,4,16,8,12,0,0,0,0,0,0,0,0,0,0,0,0,0,0,0,0,0,0,0,0,0,0,0,0,0,0,0,0,0,0,0,0,0,0,0,0,0,0,0,0,0,0,-8,-8,-8,-8,-8,-8,-13,-8]} 1. e4 {[%emt 0:00:03]} c5 {[%emt 0:00:07]} 2. Nf3 {[%emt 0:00:19]} Nc6 {[%emt 0:00:07]} 3. Bb5 {[%emt 0:00:15]} g6 {[%emt 0:00:17]} 4. O-O {[%emt 0:00:33]} Bg7 {[%emt 0:00:17]} 5. d3 {[%emt 0:00:20]} d6 {[%emt 0:02:24]} 6. Bxc6+ {[%emt 0:01:49]} bxc6 {[%emt 0:00:05] [#]} 7. e5 $1 {[%emt 0:00:07]} Bg4 {[%emt 0:01:28]} 8. exd6 {[%emt 0:01:18]} exd6 {[%emt 0:00:07]} 9. Nbd2 {[%emt 0:01:11] The position is equal.} Ne7 {[%emt 0:01:17]} 10. h3 {[%emt 0:00:18]} Bxf3 {[%emt 0:02:24]} 11. Nxf3 {[%emt 0:00:07]} O-O {[%emt 0:00:38]} 12. c3 {[%emt 0:00:12]} Nd5 {[%emt 0:01:42]} 13. Bd2 {[%emt 0:03:03]} Rb8 {[%emt 0:02:06]} 14. Qc2 {[%emt 0:04:55]} Qd7 {[%emt 0:03:35]} 15. Rfe1 {[%emt 0:01:00]} Rfe8 {[%emt 0:06:20]} 16. Rxe8+ {[%emt 0:06:10]} Rxe8 {[%emt 0:01:16]} 17. Re1 {[%emt 0:01:54]} Rxe1+ {[%emt 0:06:21]} 18. Nxe1 {[%emt 0:00:54]} Qe6 {[%emt 0:05:02]} 19. Kf1 {[%emt 0:02:52] Against Qe2+} Nb6 {[%emt 0:08:45]} 20. c4 {[%emt 0:06:17]} d5 {[%emt 0:07:19][%cal Rd5c4]} 21. Be3 {[%emt 0:08:58]} dxc4 {[%emt 0:04:42]} 22. Bxc5 {[%emt 0:02:09]} Qd5 {[%emt 0:05:31]} 23. Bxb6 {[%emt 0:02:01]} cxd3 {[%emt 0:01:20]} 24. Qxd3 {[%emt 0:03:12]} Qxd3+ {[%emt 0:02:13]} 25. Nxd3 {[%emt 0:00:07]} axb6 $11 {[%emt 0:00:03][%mdl 4096] Endgame. KB-KN} 26. Nb4 {[%emt 0:06:47]} Bxb2 {[%emt 0:03:02]} 27. Nxc6 {[%emt 0:00:12]} Kf8 {[%emt 0:01:45]} 28. Ke2 {[%emt 0:01:30]} Ke8 {[%emt 0:01:02]} 29. Kd3 {[%emt 0:04:04]} Kd7 {[%emt 0:03:18]} 30. Na7 {[%emt 0:03:05]} Ba3 {[%emt 0:09:13]} 31. Kc4 {[%emt 0:04:36]} Bc5 {[%emt 0:01:42]} 32. f3 {[%emt 0:00:37]} Kd6 {[%emt 0:01:20]} 33. a4 {[%emt 0:01:25]} h5 {[%emt 0:02:42]} 34. Kb5 {[%emt 0:04:09]} f6 {[%emt 0:02:51]} 35. Nc8+ {[%emt 0:04:44]} Kc7 {[%emt 0:00:20]} 36. Na7 {[%emt 0:00:04]} Kd6 {[%emt 0:00:30]} 37. Ka6 {[%emt 0:08:17]} Kc7 {[%emt 0:01:17]} 38. Kb5 {[%emt 0:00:14] Threatens to win with a5.} Kd6 {[%emt 0:00:42]} 39. Kc4 {[%emt 0:03:54]} Bf2 {[%emt 0:06:21]} 40. Nc8+ {[%emt 0:04:43]} Kd7 {[%emt 0:00:43]} 41. Na7 {[%emt 0:30:07]} Kd6 {[%emt 0:31:28]} 42. Nb5+ {[%emt 0:00:00]} Ke5 {[%emt 0:00:00] Strongly threatening ...Kf4.} 43. Kd3 $1 {[%emt 0:00:00]} Kf4 {[%emt 0:00:00] [#] ...Kg3 is the strong threat.} 44. Ke2 $1 {[%emt 0:00:00]} Bc5 {[%emt 0:00:00]} 45. Nc3 {[%emt 0:00:00]} Bd4 {[%emt 0:00:00] An uneventful encounter.   Weighted Error Value: White=0.02 (flawless) /Black=0.01 (flawless) .  OK:         	White=15    	Black=19     Best:        	White=1     	Black=4      Strong:       	White=2     	---} ({Wrong is} 45... Kg3 $2 46. Ne4+ Kxg2 47. Nxc5 $18) 1/2-1/2

[Event "45th FIDE Womens Olympiad 2024"]
[Site "Budapest"]
[Date "2024.09.12"]
[Round "2.29"]
[White "Tokhirjonova, Gulrukhbegim"]
[Black "Mendoza, Shania Mae"]
[Result "1/2-1/2"]
[ECO "B01"]
[WhiteElo "2380"]
[BlackElo "2013"]
[Annotator "TA"]
[PlyCount "147"]
[EventDate "2024.09.05"]
[EventType "team-tourn"]
[EventCountry "HUN"]
[SourceTitle "playchess.com"]
[Source "ChessBase"]
[SourceQuality "1"]
[WhiteTeam "United States of America"]
[BlackTeam "Philippines"]
[WhiteTeamCountry "USA"]
[BlackTeamCountry "PHI"]
[TimeControl "40/5400+30:1800+30"]

{[%evp 46,146,29,24,25,22,29,29,27,26,27,31,25,30,26,35,41,25,46,44,45,41,64,64,64,64,66,80,87,86,89,70,116,129,144,130,113,50,129,8,7,0,0,0,0,6,8,0,0,0,0,0,0,0,8,8,8,8,8,8,8,8,8,8,8,8,8,8,8,8,8,8,8,8,8,8,8,8,8,8,8,8,8,0,0,0,0,0,0,0,0,0,0,0,0,0,0,0,0,0,0,0,0]} 1. e4 {[%emt 0:00:04]} d5 {[%emt 0:01:02]} 2. exd5 {[%emt 0:00:21]} Qxd5 {[%emt 0:01:48]} 3. Nc3 {[%emt 0:00:19]} Qa5 {[%emt 0:00:44]} 4. d4 {[%emt 0:00:20]} c6 {[%emt 0:00:15]} 5. Bc4 {[%emt 0:00:56]} Nf6 {[%emt 0:04:12]} 6. Nge2 {[%emt 0:00:52]} g6 {[%emt 0:05:49] B01: Scandinavian Defence.} 7. O-O {[%emt 0:02:50]} Bg7 {[%emt 0:00:10]} 8. Nf4 {[%emt 0:05:18]} O-O {[%emt 0:04:30]} 9. Re1 {[%emt 0:00:48]} Re8 $146 {[%emt 0:03:43]} ({Predecessor:} 9... e6 10. Be3 Nbd7 11. Qf3 Nb6 12. Bb3 Nbd5 13. Ncxd5 exd5 14. h3 Bf5 15. g4 Bd7 {½-½ Lehtivaara,R (2121)-Bjarnemark,D (2029) FIN-chT1B 1819 2018 (5.5)}) 10. Nd3 {[%emt 0:06:20]} Bg4 {[%emt 0:18:47]} 11. Qd2 {[%emt 0:07:40]} Nbd7 {[%emt 0:14:01]} 12. Ne5 {[%emt 0:08:16]} Nxe5 {[%emt 0:07:12]} 13. dxe5 {[%emt 0:00:40]} Nd5 {[%emt 0:00:59]} 14. Bxd5 {[%emt 0:07:01]} cxd5 {[%emt 0:00:10]} 15. Qxd5 {[%emt 0:00:37]} Qa6 {[%emt 0:04:26]} 16. Qb5 {[%emt 0:02:20]} Qxb5 {[%emt 0:03:32]} 17. Nxb5 {[%emt 0:00:15]} Red8 {[%emt 0:01:04]} 18. h3 {[%emt 0:04:50]} Bd7 {[%emt 0:05:15]} 19. Na3 {[%emt 0:02:26]} Rac8 {[%emt 0:01:48]} 20. c3 {[%emt 0:00:20]} Bf5 {[%emt 0:00:31]} 21. Be3 {[%emt 0:09:58]} Bxe5 {[%emt 0:02:54]} 22. Bxa7 {[%emt 0:00:25]} Bf6 {[%emt 0:00:13]} 23. Be3 {[%emt 0:01:29]} Rd5 {[%emt 0:02:08]} 24. Red1 {[%emt 0:04:33]} Rxd1+ {[%emt 0:02:56]} 25. Rxd1 {[%emt 0:02:04]} Be6 {[%emt 0:00:03]} 26. Nb5 {[%emt 0:04:00]} Bxa2 {[%emt 0:04:06]} 27. Rd7 {[%emt 0:00:17]} Rb8 {[%emt 0:00:52]} 28. Ba7 {[%emt 0:07:35]} Be6 {[%emt 0:00:10]} 29. Rc7 {[%emt 0:00:08]} Rd8 {[%emt 0:00:12]} 30. Bd4 $1 {[%emt 0:00:27]} (30. Rxb7 $2 {perishes.} Rd1+ 31. Kh2 Be5+ 32. f4 (32. g3 Bd5 33. f3 Bxf3 34. Bg1 Bxb7 35. Nd4 Rd2+) 32... Bxf4+ 33. g3 Bd5 (33... Rd2+ $2 34. Kg1 $19) 34. gxf4 Bxb7 $19) 30... Rd7 {[%emt 0:00:39]} 31. Bxf6 {[%emt 0:05:12]} Rxc7 {[%emt 0:03:32]} 32. Nxc7 {[%emt 0:00:12]} exf6 {[%emt 0:00:05]} 33. Ne8 {[%emt 0:00:09]} f5 {[%emt 0:00:21]} 34. Nd6 {[%emt 0:00:06]} b6 {[%emt 0:01:35]} 35. f4 {[%emt 0:01:02]} Kf8 {[%emt 0:00:07]} 36. Kf2 {[%emt 0:00:57]} Ke7 {[%emt 0:00:23]} 37. Nb5 {[%emt 0:00:06]} h6 {[%emt 0:00:30]} 38. h4 {[%emt 0:01:12]} f6 {[%emt 0:01:23]} ({Black should try} 38... Kf6 $14) 39. Ke3 $16 {[%emt 0:00:17]} g5 {[%emt 0:00:30]} 40. g3 {[%emt 0:00:06]} Bd7 {[%emt 0:00:13]} 41. Na3 {[%emt 0:30:31]} (41. Nd4 $16) 41... Kf7 $1 $14 {[%emt 0:36:37]} 42. hxg5 {[%emt 0:07:06]} (42. Nc4 $16 b5 43. Nb6) 42... fxg5 $11 {[%emt 0:00:00]} 43. Nc4 {[%emt 0:00:00]} b5 {[%emt 0:00:00]} 44. Ne5+ {[%emt 0:00:00]} Ke6 {[%emt 0:00:00]} 45. b3 {[%emt 0:00:00]} Be8 {[%emt 0:00:00]} 46. Kd4 {[%emt 0:00:00]} Bh5 {[%emt 0:00:00]} 47. c4 {[%emt 0:00:00]} bxc4 {[%emt 0:00:00]} 48. Kxc4 {[%emt 0:00:00]} Be2+ {[%emt 0:00:00]} 49. Kd4 {[%emt 0:00:00]} Kf6 {[%emt 0:00:00]} 50. b4 {[%emt 0:00:00]} gxf4 {[%emt 0:00:00]} 51. gxf4 {[%emt 0:00:00]} h5 {[%emt 0:00:00]} 52. Ke3 {[%emt 0:00:00]} Bg4 {[%emt 0:00:00]} 53. Kf2 {[%emt 0:03:22]} Ke6 {[%emt 0:00:00]} 54. b5 {[%emt 0:05:38]} Kd6 {[%emt 0:00:00]} 55. b6 {[%emt 0:00:11]} Bd1 {[%emt 0:00:00]} 56. Kg3 {[%emt 0:04:53]} Bc2 {[%emt 0:00:13]} 57. Nf3 {[%emt 0:00:48]} Be4 {[%emt 0:00:35]} 58. Nd4 {[%emt 0:00:10]} Kc5 {[%emt 0:02:25]} 59. Nxf5 {[%emt 0:00:08]} Kxb6 {[%emt 0:00:08]} (59... Bxf5 $2 {too greedy.} 60. b7 Bd3 61. b8=Q $18 (61. b8=B Bf5 $11)) 60. Ng7 {[%emt 0:00:08]} Kc5 {[%emt 0:01:06]} 61. Nxh5 {[%emt 0:00:08]} Kd6 {[%emt 0:00:11]} 62. Nf6 {[%emt 0:00:24]} Bb1 {[%emt 0:00:11]} 63. Kf3 {[%emt 0:00:30]} Ke6 {[%emt 0:00:11]} 64. Ne4 {[%emt 0:00:11]} Bxe4+ {[%emt 0:00:22]} 65. Kxe4 {[%emt 0:00:09]} Kf6 {[%emt 0:00:04]} 66. f5 {[%emt 0:00:08]} Kf7 {[%emt 0:00:19]} 67. Ke5 $1 {[%emt 0:00:05]} Ke7 {[%emt 0:00:03]} 68. f6+ {[%emt 0:00:07]} Kf7 {[%emt 0:00:08]} 69. Kf5 {[%emt 0:00:06]} Kf8 {[%emt 0:00:04]} 70. Kg4 {[%emt 0:00:06]} Kf7 {[%emt 0:00:21]} 71. Kg5 {[%emt 0:00:07]} (71. Kf5 $5) 71... Kf8 {[%emt 0:00:04]} 72. Kg6 {[%emt 0:00:09]} Kg8 {[%emt 0:00:13]} 73. f7+ $1 {[%emt 0:00:05]} Kf8 {[%emt 0:00:03]} 74. Kf6 {[%emt 0:00:04]} 1/2-1/2

[Event "45th FIDE Womens Olympiad 2024"]
[Site "Budapest"]
[Date "2024.09.12"]
[Round "2.30"]
[White "Frayna, Janelle Mae"]
[Black "Yip, Carissa"]
[Result "0-1"]
[ECO "E95"]
[WhiteElo "2216"]
[BlackElo "2386"]
[Annotator "TA"]
[PlyCount "109"]
[EventDate "2024.09.05"]
[EventType "team-tourn"]
[EventCountry "HUN"]
[SourceTitle "playchess.com"]
[Source "ChessBase"]
[SourceQuality "1"]
[WhiteTeam "Philippines"]
[BlackTeam "United States of America"]
[WhiteTeamCountry "PHI"]
[BlackTeamCountry "USA"]
[TimeControl "40/5400+30:1800+30"]

{[%evp 44,109,89,70,77,18,38,0,7,-56,49,51,68,-4,54,32,29,40,22,25,18,37,95,97,118,115,126,65,100,0,139,0,0,-1254,-1236,-1208,-822,-6187,-6070,-3515,-562,-608,-626,-641,-632,-939,-909,-1042,-819,-1021,-1100,-1014,-1035,-967,-941,-1673,-1214,-1922,-1857,-1922,-1922,-4929,-4687,-29962,-29965,-29970,-29971,-29964]} 1. c4 {[%emt 0:00:09]} g6 {[%emt 0:00:46]} 2. d4 {[%emt 0:03:00]} Bg7 {[%emt 0:00:05]} 3. Nf3 {[%emt 0:00:09]} d6 {[%emt 0:01:51]} 4. Nc3 {[%emt 0:00:20]} Nf6 {[%emt 0:07:41]} 5. e4 {[%emt 0:00:32]} O-O {[%emt 0:00:04]} 6. Be2 {[%emt 0:00:05]} Nbd7 {[%emt 0:01:28]} 7. O-O {[%emt 0:01:41]} e5 {[%emt 0:00:04]} 8. Re1 {[%emt 0:00:33]} Re8 {[%emt 0:00:51]} 9. Bf1 {[%emt 0:01:30]} exd4 {[%emt 0:04:55]} 10. Nxd4 {[%emt 0:00:06]} a6 {[%emt 0:05:26]} 11. f3 {[%emt 0:01:08]} c6 {[%emt 0:01:31]} 12. Nb3 {[%emt 0:05:41]} Qc7 {[%emt 0:06:16]} 13. Be3 {[%emt 0:01:24]} Ne5 {[%emt 0:02:29]} 14. Rc1 {[%emt 0:00:07]} Be6 {[%emt 0:12:41]} 15. Nd5 {[%emt 0:01:38]} Bxd5 {[%emt 0:00:52]} 16. cxd5 {[%emt 0:00:09]} c5 {[%emt 0:00:03]} 17. a4 {[%emt 0:06:44]} Rab8 {[%emt 0:16:51]} 18. a5 {[%emt 0:15:04]} Qd8 {[%emt 0:09:36]} 19. Rc2 {[%emt 0:07:23]} h6 {[%emt 0:01:39]} 20. Qa1 {[%emt 0:06:06]} Nh5 {[%emt 0:05:43]} 21. Nd2 {[%emt 0:09:31]} Kh8 {[%emt 0:00:19]} 22. Qa4 {[%emt 0:01:35]} b5 {[%emt 0:09:07]} 23. axb6 {[%emt 0:00:21]} Rxb6 {[%emt 0:00:03]} 24. Bxa6 {[%emt 0:06:43]} ({White should try} 24. b3 $16) 24... Rb4 {[%emt 0:00:03]} 25. Qa2 {[%emt 0:06:29]} f5 $1 {[%emt 0:02:29]} 26. Bf1 {[%emt 0:02:06]} ({White should play} 26. exf5 $11 Qd7 27. Qb1) 26... f4 {[%emt 0:06:46]} (26... fxe4 $15 27. Nxe4 Rxe4 28. fxe4 Ng4) 27. Bf2 $14 {[%emt 0:00:08]} g5 {[%emt 0:00:01]} 28. Nc4 {[%emt 0:05:59]} (28. Be2 $1 $14) 28... Rg8 {[%emt 0:01:08]} (28... g4 $11 29. fxg4 (29. Nxe5 Bxe5 30. Rb1 g3 $19) 29... Nxg4) 29. Qa6 {[%emt 0:06:12]} Nxc4 {[%emt 0:00:26]} 30. Bxc4 {[%emt 0:00:01]} Rb6 {[%emt 0:01:08]} 31. Qa3 {[%emt 0:00:31]} Be5 {[%emt 0:00:07]} 32. Rb1 {[%emt 0:02:47]} Rb4 {[%emt 0:01:51]} (32... Qe8 $14) 33. Be1 $16 {[%emt 0:00:39]} Bd4+ {[%emt 0:00:03]} 34. Kf1 {[%emt 0:01:32]} g4 {[%emt 0:00:50]} 35. Bxb4 {[%emt 0:01:25]} (35. fxg4 $16 Nf6 36. Be2 (36. Bxb4 Nxg4 37. Ba5 Qh4 $17)) 35... cxb4 $14 {[%emt 0:00:05]} 36. Qd3 {[%emt 0:00:50]} (36. Qxb4 $16 {And now fxg4 would win.} gxf3 37. Bd3) 36... Qf6 {[%emt 0:00:53]} (36... Be3 $1 $11 {remains equal.} 37. fxg4 Rxg4) 37. Rd1 {[%emt 0:01:53]} ({Better is} 37. fxg4 $16 f3 38. Qxf3 (38. gxh5 fxg2+ 39. Ke1 g1=Q+ 40. Qf1 Qf3 41. Be2 Bf2+ 42. Kd2 Qe3+ 43. Kd1 Qxf1+ 44. Bxf1 Qe1#)) 37... Be3 $11 {[%emt 0:00:06]} 38. e5 $2 {[%emt 0:00:09][%mdl 8192] [#]} (38. Re1 $11) 38... Qh4 $1 $19 {[%emt 0:00:29]} 39. Re1 {[%emt 0:04:53]} Qxh2 {[%emt 0:02:15]} 40. Rxe3 {[%emt 0:00:03]} Qh1+ {[%emt 0:00:16]} (40... fxe3 41. Qxe3 Ng3+ 42. Ke1 $17) 41. Ke2 {[%emt 0:03:48]} fxe3 {[%emt 0:15:05]} (41... gxf3+ $142 42. Kxf3 Rg3+ (42... fxe3 $2 43. Kxe3 Qg1+ 44. Kd2 $19) 43. Ke4 fxe3 (43... Rxe3+ $2 44. Qxe3 fxe3 45. Bd3 $19) 44. Qxe3 Qh4+ (44... Rxe3+ $2 45. Kxe3 Qg1+ 46. Ke4 $19) 45. Kd3 dxe5 (45... Rxe3+ $2 46. Kxe3 Qg5+ 47. Ke2 $19) 46. Qxg3 Qd4+ (46... Qxg3+ $2 47. Kd2 $19) 47. Ke2 Nxg3+ 48. Ke1 Qg1+ 49. Kd2 Qxg2+ 50. Kd1 Qg1+ 51. Kd2 Ne4+ 52. Kd3 Qd4+ 53. Ke2 Qf2+ 54. Kd1 Qf3+ 55. Ke1 b3 56. Bxb3 Qxb3 57. Rc8+ Kg7 58. Ke2 Qxb2+ 59. Kd3 Nf2+ 60. Ke3 Qd4+ 61. Kf3 Ne4 (61... Qxd5+ {is a self mate.} 62. Kxf2 Qd7 63. Ra8 Qd2+ 64. Kg1 Qe1+ 65. Kh2 Qf2+ 66. Kh1 Qf3+ 67. Kg1 Qxa8 68. Kf2 Qe4 69. Kf1 Qe3 70. Kg2 h5 71. Kf1 h4 72. Kg2 h3+ 73. Kh2 Qf3 74. Kg1 Qg2#) 62. Rc2 Qd3+ (62... Qxd5 {gets mated.} 63. Rb2 Ng5+ 64. Kg3 Qd4 65. Ra2 h5 66. Kh2 Kh7 67. Kg3 Qg1+ 68. Rg2 Qe1+ 69. Rf2 Ne4+ 70. Kf3 Nxf2 71. Kg2 Ng4 72. Kh3 Qf1+ 73. Kh4 Qf4 74. Kxh5 Nf6#) 63. Kg4 Nf6+ (63... Qxc2 64. Kf5 Ng5+ 65. Kxe5 Qc5 66. Kf4 Qf2+ 67. Kg4 Qf3+ 68. Kh4 Qh3#) 64. Kh4 Qf3 (64... Qxc2 65. Kh3 Qf2 66. d6 Ne4 67. Kg4 Qf4+ 68. Kh5 Qg5#) 65. Rc4 Kg6 (65... Qxd5 66. Rc8 Qg2 67. Rc7+ Kg8 68. Rc8+ Kf7 69. Rc7+ Ke6 70. Rc6+ Kf5 71. Rxf6+ Kxf6 72. Kh5 Qh3#) (65... Qf2+ 66. Kh3 Qf1+ 67. Kg3 Qxc4 68. Kg2 Ne4 69. Kh2 Qf1 70. d6 Qf2+ 71. Kh3 Qg3#) 66. Ra4 Qg2 67. d6 Qh2#) 42. Qxe3 {[%emt 0:02:23] [#]} gxf3+ $1 {[%emt 0:03:50]} 43. gxf3 {[%emt 0:15:31]} Qh2+ {[%emt 0:01:29]} 44. Kd3 {[%emt 0:02:14]} Nf4+ {[%emt 0:00:08]} ({Weaker is} 44... Qxe5 45. Qxh6#) 45. Kd4 {[%emt 0:00:02]} Qxc2 {[%emt 0:00:09]} 46. Qxf4 {[%emt 0:00:02]} Qxb2+ {[%emt 0:00:07]} 47. Ke4 {[%emt 0:00:03]} Qxe5+ {[%emt 0:00:51]} 48. Qxe5+ {[%emt 0:00:03]} dxe5 {[%emt 0:00:02]} 49. Kxe5 {[%emt 0:01:07]} Rb8 {[%emt 0:02:02]} 50. Bb3 {[%emt 0:05:05]} Kg7 {[%emt 0:00:18]} 51. d6 {[%emt 0:00:19]} Kf8 {[%emt 0:01:36]} 52. f4 {[%emt 0:01:26]} h5 {[%emt 0:00:11]} 53. f5 {[%emt 0:00:22]} h4 {[%emt 0:00:39]} 54. Kf4 {[%emt 0:00:46]} Rd8 {[%emt 0:00:11]} 55. Ke4 {[%emt 0:03:42]} 0-1

[Event "45th FIDE Womens Olympiad 2024"]
[Site "Budapest"]
[Date "2024.09.12"]
[Round "2.30"]
[White "Ibtihal Osman"]
[Black "Henry, Zahidu"]
[Result "1-0"]
[ECO "B10"]
[WhiteElo "1626"]
[BlackElo "1450"]
[Annotator "NA"]
[PlyCount "63"]
[EventDate "2024.09.05"]
[EventType "team-tourn"]
[EventCountry "HUN"]
[SourceTitle "playchess.com"]
[Source "ChessBase"]
[SourceQuality "1"]
[WhiteTeam "Sudan"]
[BlackTeam "Dominica"]
[WhiteTeamCountry "SUD"]
[BlackTeamCountry "DMA"]
[TimeControl "40/5400+30:1800+30"]

1. e4 c6 2. Nf3 d5 3. e5 Bg4 4. d4 e6 5. c3 c5 6. Be2 Nc6 7. Be3 Qb6 8. Qd2 f6 9. O-O Bxf3 10. Bxf3 fxe5 11. dxc5 Qc7 12. Bh5+ g6 13. Bg4 Qd7 14. f4 e4 15. Bd4 Bg7 16. Bxg7 Qxg7 17. Bxe6 Nge7 18. Na3 a6 19. Rad1 Qf6 20. Bxd5 Rd8 21. Bxc6+ Nxc6 22. Qe3 Qe7 23. Nc4 O-O 24. Nd6 Rd7 25. Qxe4 Qf6 26. g3 h6 27. Rfe1 Kg7 28. Ne8+ Rxe8 29. Rxd7+ Re7 30. Rxe7+ Kf8 31. Rxb7 Nd8 32. Qe8# 1-0